Cogmind - Beta 9.3 @@@ ROGUE MODE // 2020.01.02 @ 21:58:48 Player: Horse Result: Destroyed by G-47 Trooper with Particle Gun Performance ------------- Evolutions (2) 1000 Regions Visited (7) 1400 Robots Destroyed (176) 880 Value Destroyed (5411) 5411 Prototype IDs (13) 260 Alien Tech Used (0) 0 Bonus (1648) 1648 TOTAL SCORE: 10599 Bonus ------- High Alert Combat Kills 926 Follower Combat Kills 214 Entered Garrisons 200 Used RIF Installer 500 Friendly Fire -192 Cogmind --------- Core Integrity 0/550 Matter 300/300 Energy 148/150 System Corruption 0% Temperature Cool (12) Movement Hovering (66) Location -8/Materials Parts ------- > --- POWER (1) -------- Light Angular Momentum Engine > --- PROPULSION (2) --- Airjet Combat Airjet > --- UTILITY (6) ------ Medium Storage Unit Medium Storage Unit Transport Network Coupler Hacking Suite System Shield Relay Coupler [NC] (17) > --- WEAPON (2) ------- Flak Gun Makeshift Sword > --- INVENTORY (12) --- Improved Carbon-fiber Leg Experimental Sensor Array Advanced Signal Interpreter Advanced Terrain Scanner Transmission Jammer Maneuvering Thrusters Core Shielding System Shield Relay Coupler [Grunt] (29) Relay Coupler [Grunt] (24) Improved Recalibrator Remote Datajack Peak State ------------ > --- POWER ------------ Light Angular Momentum Engine > --- PROPULSION ------- Titanium Leg Titanium Leg > --- UTILITY ---------- Medium Storage Unit Medium Storage Unit Transport Network Coupler Improved Shield Generator Hacking Suite Improved Recalibrator > --- WEAPON ----------- Flak Gun Makeshift Sword > --- INVENTORY -------- Combat Airjet Experimental Sensor Array Advanced Signal Interpreter Advanced Terrain Scanner Transmission Jammer Core Shielding System Shield System Shield Relay Coupler [Grunt] Relay Coupler [Grunt] Flak Gun Remote Datajack [Rating: 39] Favorites ----------- Power Cooled Ion Engine Engine Cooled Ion Engine Power Core Light Nuclear Core Propulsion Aluminum Leg Treads Light Treads Leg Aluminum Leg Hover Unit Combat Airjet Utility Medium Storage Unit Device Weight Redist. System Storage Medium Storage Unit Processor Transport Network Coupler Hackware Hacking Suite Protection Core Shielding Weapon Improved Assault Rifle Energy Gun Heavy Laser Energy Cannon Advanced Beam Cannon Ballistic Gun Improved Assault Rifle Ballistic Cannon Light Cannon Launcher Shock Bomb Launcher Special Weapon Remote Datajack Slashing Weapon Makeshift Sword Build | -11 -10 -10 -9 -9 -8 -8 -8 ------- Run | Scr Mat Min Mat Min Mat Gar Mat Slots Evolved 4 | . . . 2 . 2 . . Power . | . . . . . . . . Propulsion . | . . . . . . . . Utility 4 | . . . 2 . 2 . . Weapon . | . . . . . . . . Parts Attached 174 | 7 9 6 61 . 7 25 59 Power 18 | 1 2 1 6 . . 1 7 Engine 14 | 1 2 . 6 . . 1 4 Core 4 | . . 1 . . . . 3 Reactor . | . . . . . . . . Propulsion 30 | 2 1 1 12 . 1 3 10 Treads 2 | . . . . . . 2 . Leg 23 | 2 1 1 10 . 1 1 7 Wheel . | . . . . . . . . Hover 5 | . . . 2 . . . 3 Flight . | . . . . . . . . Utility 60 | 2 3 2 21 . 3 10 19 Device 29 | . . 1 14 . 1 3 10 Storage 6 | 2 1 . 1 . . . 2 Processor 2 | . . . 1 . . . 1 Hackware 5 | . . . . . 1 . 4 Protection 18 | . 2 1 5 . 1 7 2 Artifact . | . . . . . . . . Weapon 66 | 2 3 2 22 . 3 11 23 Energy Gun 7 | . . . 1 . . 2 4 Energy Cannon 13 | . . . 8 . 1 4 . Ballistic Gun 17 | 2 . 1 2 . 2 1 9 Ballistic Cannon 4 | . 2 1 1 . . . . Launcher 15 | . 1 . 10 . . 4 . Special Weapon 1 | . . . . . . . 1 Impact Weapon . | . . . . . . . . Slashing Weapon 9 | . . . . . . . 9 Piercing Weapon . | . . . . . . . . Special Melee Weapon . | . . . . . . . . Unidentified Prototypes 8 | . . 1 4 . . . 3 Parts Lost 29 | . 3 3 6 . . 7 10 Power 7 | . 1 . 1 . . 1 4 Propulsion 7 | . . 1 2 . . 1 3 Utility 5 | . . . 1 . . 3 1 Weapon 10 | . 2 2 2 . . 2 2 Highest Loss Streak 4 | . 3 2 4 . . 4 3 Average Slot Usage (%) 98 | . 99 99 96 100 97 98 98 Engine 8 | . 13 9 9 11 9 8 3 Core 1 | . . 4 . . . . 4 Leg 20 | . 28 27 21 22 18 11 16 Device 4 | . . . 5 . 7 3 6 Storage 16 | . 18 14 14 22 18 18 18 Processor 7 | . . . 10 11 9 9 9 Hackware 5 | . . . . . 7 9 15 Protection 10 | . 9 13 12 11 9 14 4 Energy Gun 1 | . . . . . . 4 4 Energy Cannon 1 | . . . 4 . 1 4 . Ballistic Gun 9 | . 19 3 11 11 9 7 7 Ballistic Cannon 2 | . 4 14 . . . . . Launcher 4 | . 4 10 4 11 7 1 . Slashing Weapon 1 | . . . . . . . 5 Naked Turns . | . . . . . . . . Heaviest Build 40 | 17 20 20 40 34 38 40 36 Greatest Support 40 | 20 20 20 28 23 23 40 40 Greatest Overweight (x) 3 | . . 1 2 1 1 3 1 Average Overweight (x) . | . . . . 1 1 . . Largest Inventory Capacity 12 | 8 8 8 12 12 12 12 12 Average Capacity 10 | 6 7 8 9 12 12 12 12 Most Carried 12 | 1 6 8 12 12 12 12 12 Average Carried 9 | . 4 6 8 12 11 11 11 Final Capacity 12 | 8 8 8 12 12 12 12 12 Final Carried 12 | 1 5 7 12 12 12 12 12 Class Distribution -------------------- 55% | Scavenger-Mutant 44% | Mutant Dominant Class ---------------- Mutant | -10/Materials Mutant | -10/Mines Scavenger-Mutant | -9/Materials Mutant | -9/Mines Scavenger-Mutant | -8/Materials Scavenger-Mutant | -8/Garrison Scavenger-Mutant | -8/Materials Resources | -11 -10 -10 -9 -9 -8 -8 -8 ----------- Run | Scr Mat Min Mat Min Mat Gar Mat Matter Collected 3824 | 277 426 267 1084 134 158 436 1042 Remotely . | . . . . . . . . Salvage Created 6285 | 69 625 427 1917 92 374 690 2091 Parts 350 | 1 45 18 119 1 21 46 99 Haulers Intercepted 8 | . 1 . 2 . 1 . 4 Recyclers Shooed 4 | . . 1 1 . . . 2 Parts Field Recycled . | . . . . . . . . Retrieved Matter . | . . . . . . . . Parts Self-Destructed . | . . . . . . . . Prevented . | . . . . . . . . Kills | -11 -10 -10 -9 -9 -8 -8 -8 ------- Run | Scr Mat Min Mat Min Mat Gar Mat Combat Hostiles Destroyed 133 | . 17 10 44 2 6 22 32 Melee 14 | . . . . . . . 14 Guns 56 | . 14 1 9 2 . 13 17 Cannons 23 | . 1 4 16 . . 2 . AOE 39 | . 2 5 19 . 6 7 . Classes Destroyed 14 | 1 4 3 5 . . . 1 Worker 2 | . . 1 1 . . . . Builder 4 | . . 1 3 . . . . Tunneler 2 | . . . 1 . . . 1 Hauler 8 | . 1 . 2 . 1 . 4 Recycler 14 | 1 1 5 2 . . . 5 Mechanic 2 | . . . . . . . 2 Operator 1 | . . . 1 . . . . Watcher 9 | . 3 . 4 . 1 . 1 Swarmer 43 | . 9 3 7 . 3 14 7 Grunt 61 | . 8 1 26 2 2 4 18 Brawler 3 | . . . 3 . . . . Duelist 3 | . . . 1 . . . 2 Sentry 17 | . . . 7 . 1 4 5 Assembled 6 | . . 6 . . . . . Thug 1 | . . . . . 1 . . Best Kill Streak 10 | 1 4 5 10 2 3 5 5 Combat Bots Only 8 | . 4 4 8 2 3 5 4 Max Kills in Single Turn 3 | 1 2 3 3 1 2 3 1 Gunslinging . | . . . . . . . . Exploded 3 | . 2 3 3 . 2 3 . Melee 1 | . . . . . . . 1 Uniques/NPCs Destroyed . | . . . . . . . . Combat | -11 -10 -10 -9 -9 -8 -8 -8 -------- Run | Scr Mat Min Mat Min Mat Gar Mat Damage Taken 5638 | . 545 363 1445 . 121 932 2232 Core 927 | . 121 36 206 . . 89 475 Absorbed by Shields 303 | . . . . . . . 303 Core Remaining (%) 61 | 100 . 37 . 48 . . . Volleys Fired 411 | 6 55 41 116 6 14 73 100 Largest 2 | 2 2 2 2 2 2 2 2 Hottest 138 | 40 40 65 91 59 59 138 94 Shots Fired 698 | 12 103 54 214 9 20 113 173 Gun 466 | 12 96 12 104 6 9 58 169 Cannon 159 | . 6 35 86 . . 32 . Launcher 69 | . 1 7 24 3 11 23 . Special 4 | . . . . . . . 4 Kinetic 441 | 12 102 47 124 6 9 33 108 Thermal 184 | . . . 66 . . 57 61 Explosive 26 | . 1 7 18 . . . . Electromagnetic 43 | . . . 6 3 11 23 . Robot Hit Streak 16 | 7 14 8 11 7 9 16 8 Robot Miss Streak 8 | 2 5 2 6 1 3 3 8 Penetration Max . | . . . . . . . . Secondary Targets 4 | . 1 . . . . . 3 Max Gunslinging Chain 1 | . 1 . . . . . 1 Shots Hit Robots 498 | 10 61 38 128 8 12 54 187 Core Hits 269 | 2 33 28 78 4 12 32 80 Critical Hits 6 | . . 2 2 . . . 2 Critical Kills 2 | . . 1 1 . . . . Critical Parts Destroyed 4 | . . 1 1 . . . 2 Melee Attacks 100 | . . . . . . . 100 Impact . | . . . . . . . . Slashing 100 | . . . . . . . 100 Piercing . | . . . . . . . . Sneak Attacks 11 | . . . . . . . 11 Combat Hostiles . | . . . . . . . . Follow-up Attacks . | . . . . . . . . Damage Inflicted 12397 | 123 844 998 3591 276 541 1170 4854 Guns 4754 | 123 680 87 1037 89 116 640 1982 Cannons 1671 | . 56 474 904 . . 237 . Explosions 3095 | . 108 437 1650 187 425 288 . Melee 2872 | . . . . . . . 2872 Ramming 5 | . . . . . . 5 . Kinetic 4218 | 123 736 561 1164 89 116 351 1078 Thermal 2377 | . . 75 777 95 . 526 904 Explosive 1943 | . 108 362 1473 . . . . Electromagnetic 982 | . . . 177 92 425 288 . Impact . | . . . . . . . . Slashing 2872 | . . . . . . . 2872 Piercing . | . . . . . . . . Highest Corruption 5 | . . . 5 5 . . . Average Corruption 5 | . . . 5 5 . . . Corruption Purged . | . . . . . . . . Effects 19 | . . . 8 11 . . . Message Errors 1 | . . . . 1 . . . Matter Fused 10 | . . . 4 6 . . . Heat Flow Errors 2 | . . . . 2 . . . Data Loss (minor) 2 | . . . 1 1 . . . Misfires 3 | . . . 3 . . . . Targeting Errors 1 | . . . . 1 . . . Overload Shots . | . . . . . . . . Overflow Damage 405 | . . 30 57 43 . 7 268 Projectiles 19 | . . 4 9 . . 6 . Explosions 118 | . . 26 48 43 . 1 . Melee 268 | . . . . . . . 268 Knockbacks 8 | . . 7 1 . . . . Impact . | . . . . . . . . Kinetic 8 | . . 7 1 . . . . Secondary . | . . . . . . . . Self-Inflicted Damage 186 | . . . 115 . 16 55 . Shots 14 | . . . 7 . 2 5 . Rammed 2 | . . . . . . 2 . Targets Rammed 2 | . . . . . . 2 . Kicked . | . . . . . . . . Crushed . | . . . . . . . . Highest Temperature 344 | . 3 74 219 242 3 249 344 Average Temperature 66 | . 2 26 41 137 2 58 108 Received Heat Transfer 1947 | . 144 120 495 . 36 297 855 Effects 4 | . . . . . . 1 3 Interference 3 | . . . . . . 1 2 Damage (minor) 1 | . . . . . . . 1 Siege Activations . | . . . . . . . . Robots Corrupted . | . . . . . . . . Combat Hostiles . | . . . . . . . . Parts Fried 2 | . . . . . . 2 . Impact Corruptions . | . . . . . . . . Robots Melted 1 | . . . . . . . 1 Combat Hostiles 1 | . . . . . . . 1 Parts Melted 5 | . . . . . . 1 4 Heat Transferred 4204 | . . 100 1377 100 . 925 1702 Parts Sabotaged . | . . . . . . . . Parts Stolen . | . . . . . . . . Parts Stripped . | . . . . . . . . Power Chain Reactions 2 | . . . . . 1 1 . Missiles Intercepted . | . . . . . . . . Alert | -11 -10 -10 -9 -9 -8 -8 -8 ------- Run | Scr Mat Min Mat Min Mat Gar Mat Peak Influence 1177 | 5 382 237 951 405 587 1177 802 Average Influence 471 | 2 227 82 556 368 355 826 532 Maximum Alert Level 4 | . 1 1 3 2 2 4 3 Low Security (%) 23 | 100 29 90 27 . 18 . . Level 1 21 | . 70 9 7 39 43 17 16 Level 2 31 | . . . 20 60 38 14 78 Level 3 19 | . . . 44 . . 41 5 Level 4 4 | . . . . . . 27 . Level 5 . | . . . . . . . . High Security . | . . . . . . . . Max Security . | . . . . . . . . Squads Dispatched 24 | . 4 1 9 . 2 . 8 Investigation 10 | . . 1 3 . 2 . 4 Extermination . | . . . . . . . . Reinforcement 12 | . 4 . 5 . . . 3 Assault 2 | . . . 1 . . . 1 Garrison . | . . . . . . . . Intercept . | . . . . . . . . Construction Impeded 3 | . . . 1 . . . 2 Haulers Reinforced . | . . . . . . . . Stealth | -11 -10 -10 -9 -9 -8 -8 -8 --------- Run | Scr Mat Min Mat Min Mat Gar Mat Distress Signals 11 | . 2 . 3 . 4 . 2 Communications Jammed . | . . . . . . . . Distress Signals . | . . . . . . . . Times Spotted 213 | . 30 21 67 2 16 24 53 Peak Tracking Total 5 | . 5 4 5 2 5 4 4 Tactical Retreats 11 | . 1 . 2 1 . 3 4 Traps | -11 -10 -10 -9 -9 -8 -8 -8 ------- Run | Scr Mat Min Mat Min Mat Gar Mat Traps Triggered 10 | . 1 . . . . 7 2 Indirectly . | . . . . . . . . Trap Hack Attempts . | . . . . . . . . Triggered . | . . . . . . . . Disarmed . | . . . . . . . . Reprogrammed . | . . . . . . . . Reused . | . . . . . . . . Traps Extracted . | . . . . . . . . Installed . | . . . . . . . . Triggered . | . . . . . . . . Machines | -11 -10 -10 -9 -9 -8 -8 -8 ---------- Run | Scr Mat Min Mat Min Mat Gar Mat Machines Disabled 21 | . . 1 6 3 4 6 1 Max in Single Turn 2 | . . 1 1 2 2 2 1 Garrison Relay 4 | . . . . . . 4 . Phase Generator 1 | . . . . . . 1 . Machines Sabotaged . | . . . . . . . . Garrisons Compromised . | . . . . . . . . Overloaded Fab Kills . | . . . . . . . . Fab Network Shutdowns . | . . . . . . . . Hacking | -11 -10 -10 -9 -9 -8 -8 -8 --------- Run | Scr Mat Min Mat Min Mat Gar Mat Machines Accessed 31 | . 7 2 8 . 6 . 8 Terminals 13 | . 4 2 4 . 1 . 2 Fabricators . | . . . . . . . . Repair Stations 6 | . 1 . 2 . 1 . 2 Recycling Units 5 | . 2 . . . 1 . 2 Scanalyzers 5 | . . . 2 . 2 . 1 Garrison Access 2 | . . . . . 1 . 1 Total Hacks 105 | . 20 7 31 . 17 . 30 Successful 68 | . 12 2 19 . 13 . 22 Failed 36 | . 8 4 12 . 4 . 8 Catastrophic 1 | . . . 1 . . . . Database Lockouts 1 | . . 1 . . . . . Manual 29 | . 6 5 10 . 2 . 6 Terminals 45 | . 13 7 16 . 2 . 7 Fabricators . | . . . . . . . . Repair Stations 21 | . 3 . 9 . 2 . 7 Recycling Units 11 | . 4 . . . 1 . 6 Scanalyzers 25 | . . . 6 . 11 . 8 Garrison Access 3 | . . . . . 1 . 2 Terminal Hacks 16 | . 4 2 6 . . . 4 Robot Analysis 2 | . 1 1 . . . . . Prototype ID Bank 4 | . 1 . 1 . . . 2 Branch Access Points 2 | . . . 1 . . . 1 Terminal Index 1 | . 1 . . . . . . Unreport Threat 2 | . . . 1 . . . 1 Dispatch Records 1 | . . 1 . . . . . Recall Investigation 1 | . . . 1 . . . . Hauler Manifests 3 | . 1 . 2 . . . . Fabricator Hacks . | . . . . . . . . Repair Station Hacks 16 | . 2 . 8 . 2 . 4 Scan Component 9 | . 1 . 4 . 1 . 3 Repair 7 | . 1 . 4 . 1 . 1 Recycling Unit Hacks 5 | . 2 . . . 1 . 2 Retrieve Components 5 | . 2 . . . 1 . 2 Scanalyzer 20 | . . . 4 . 8 . 8 Insert Component 10 | . . . 2 . 4 . 4 Analyze 10 | . . . 2 . 4 . 4 Garrison Access Hacks 2 | . . . . . 1 . 1 Unlock Access 1 | . . . . . 1 . . Coupler Status 1 | . . . . . . . 1 Unauthorized Hacks 20 | . 8 . 2 . 3 . 7 Terminals 5 | . 3 . 1 . 1 . . Botnet 4 | . 2 . 1 . 1 . . Operators 1 | . 1 . . . . . . Fabricators . | . . . . . . . . Repair Stations . | . . . . . . . . Recycling Units 3 | . 1 . . . . . 2 Reject 3 | . 1 . . . . . 2 Scanalyzers . | . . . . . . . . Garrison Access 1 | . . . . . . . 1 Eject 1 | . . . . . . . 1 Data Cores Recovered . | . . . . . . . . Used . | . . . . . . . . Hacking Detections 28 | . 6 2 8 . 6 . 6 Full Trace Events 9 | . . 1 3 . 2 . 3 Feedback Events . | . . . . . . . . Feedback Blocked . | . . . . . . . . Robot Schematics Acquired . | . . . . . . . . Robots Built . | . . . . . . . . Matter . | . . . . . . . . Time . | . . . . . . . . Total Robot Build Rating . | . . . . . . . . Part Schematics Acquired 10 | . . . 2 . 4 . 4 Parts Built . | . . . . . . . . Matter . | . . . . . . . . Time . | . . . . . . . . Total Part Build Rating . | . . . . . . . . Parts Repaired 7 | . 1 . 4 . 1 . 1 Time 257 | . 26 . 179 . 26 . 26 Parts Recycled . | . . . . . . . . Recycled Matter . | . . . . . . . . Retrieved Matter . | . . . . . . . . Retrieved Components 24 | . 11 . . . 3 . 10 Parts Scanalyzed 10 | . . . 2 . 4 . 4 Part Schematics Acquired 10 | . . . 2 . 4 . 4 Parts Damaged . | . . . . . . . . Bothacking | -11 -10 -10 -9 -9 -8 -8 -8 ------------ Run | Scr Mat Min Mat Min Mat Gar Mat Used RIF Installer 1 | . . . . . . 1 . Robots Hacked 2 | . . . . . . . 2 Non-combat 2 | . . . . . . . 2 Combat . | . . . . . . . . Robot Hacks Applied 3 | . . . . . . . 3 drop_inventory 1 | . . . . . . . 1 purge_threat 2 | . . . . . . . 2 Relay Couplers Released 15 | . . . . . . 12 3 Ejected 3 | . . . . . . . 3 Machine Destruction 12 | . . . . . . 12 . Attached 3 | . . . . . . . 3 Robots Rewired . | . . . . . . . . Allies Hacked . | . . . . . . . . Hacks Repelled . | . . . . . . . . Allies | -11 -10 -10 -9 -9 -8 -8 -8 -------- Run | Scr Mat Min Mat Min Mat Gar Mat Total Allies 5 | . . 3 . 2 . . . Largest Group 3 | . . 3 1 2 2 1 . Highest-Rated Group 48 | . . 40 14 48 48 17 . Highest-Rated Ally 31 | . . 16 14 31 31 17 . Total Orders . | . . . . . . . . Ally Attacks 71 | . . 47 . . 24 . . Total Damage 890 | . . 514 . . 376 . . Kills 15 | . . 10 . . 5 . . Allies Corrupted . | . . . . . . . . Allies Melted . | . . . . . . . . Intel | -11 -10 -10 -9 -9 -8 -8 -8 ------- Run | Scr Mat Min Mat Min Mat Gar Mat Robot Analysis Total 2 | . 1 1 . . . . . Derelict Logs Recovered 3 | . . 2 . 1 . . . Drone Launches . | . . . . . . . . Drone Recoveries . | . . . . . . . . Exploration | -11 -10 -10 -9 -9 -8 -8 -8 ------------- Run | Scr Mat Min Mat Min Mat Gar Mat Turns Passed 7667 | 116 846 938 1932 365 417 1215 1838 Spaces Moved 4189 | 77 513 666 944 234 238 566 951 Core 10 | 10 . . . . . . . Treads 221 | . . . . . . 217 4 Legs 3762 | 67 513 666 914 234 238 349 781 Wheels . | . . . . . . . . Hover 196 | . . . 30 . . . 166 Flight . | . . . . . . . . Fastest Speed 50 | 50 120 120 66 150 150 150 66 Average Speed 130 | 110 120 120 130 150 150 156 119 Slowest Speed 210 | 120 120 150 180 150 150 210 160 Overloaded Moves . | . . . . . . . . Propulsion Burnouts . | . . . . . . . . Robots Hopped . | . . . . . . . . Cave-ins Triggered . | . . . . . . . . Exploration Rate (%) 62 | 5 99 98 76 54 25 90 49 Regions Visited 7 Branch Regions 2 Pre-discovered Areas 2 | . . 2 . . . . . Known Exits Taken 2 | . . . 1 . 1 . . Unknown Exits Taken 4 | 1 1 1 . 1 . . . Scrap Searched 3 | . . 2 . 1 . . . Spaces Dug 24 | . . 5 . . . . 19 Terrain Destroyed 358 | . 8 60 168 6 5 92 19 Melee 19 | . . . . . . . 19 Projectile . | . . . . . . . . AOE 339 | . 8 60 168 6 5 92 . Actions | -11 -10 -10 -9 -9 -8 -8 -8 --------- Run | Scr Mat Min Mat Min Mat Gar Mat Total 5580 | 92 641 751 1420 239 280 775 1382 Wait 584 | 2 50 33 269 . 11 74 145 Move 4182 | 76 512 665 943 233 237 565 951 Hop . | . . . . . . . . Pick Up 46 | 1 9 5 12 . 5 8 6 Fast Attach 56 | 7 3 1 15 . 3 6 21 Attach 19 | . 3 3 3 . 2 4 4 Detach 5 | . 1 . 2 . . . 2 Swap 99 | . 3 2 43 . 2 15 34 Drop 56 | . 5 1 17 . 6 8 19 Fire 411 | 6 55 41 116 6 14 73 100 Melee 100 | . . . . . . . 100 Ram . | . . . . . . . . Kick . | . . . . . . . . Crush 2 | . . . . . . 2 . Escape Stasis 20 | . . . . . . 20 . Rewire . | . . . . . . . . Trap . | . . . . . . . . Miscellaneous . | . . . . . . . . Route ------- -11/Scrapyard -10/Materials (discovered 5 exits: *Mat x3 / *Min x2) -10/Mines (discovered 2 exits: *Mat x2) -9/Materials (discovered 4 exits: *Mat x2 / *Min x2) -9/Mines -8/Materials (discovered 2 exits: Fac / Gar) -8/Garrison (discovered 3 exits: *Mat x3) -8/Materials (discovered 1 exit: *Fac) History --------- Turn | Location | Event 2 | -11/Scrapyard | Met Revision 17 13 | -11/Scrapyard | Discovered new exit (range 16) 117 | -11/Scrapyard | Entered Materials 305 | -10/Materials | Build established: Mutant 352 | -10/Materials | Discovered new exit (range 14) 474 | -10/Materials | Discovered new exit (range 13) 561 | -10/Materials | Repaired Core Shielding 692 | -10/Materials | Discovered new exit (range 16) 733 | -10/Materials | Lost 3 parts (1p2w) 781 | -10/Materials | Discovered new exit (range 13) 906 | -10/Materials | Discovered new exit (range 10) 963 | -10/Materials | Entered Mines 1011 | -10/Mines | Assisted by bots powering up and referring to "LRC-V3" 1091 | -10/Mines | Discovered new exit (range 15) 1111 | -10/Mines | Learned location of Mines (-9) 1123 | -10/Mines | Core integrity fell below 50% 1142 | -10/Mines | Found a damaged Exp. Sensor Array with a note attached 1146 | -10/Mines | Found Prototype Device 1164 | -10/Mines | Identified Exp. Sensor Array 1213 | -10/Mines | Learned location of Zion (-7) 1275 | -10/Mines | Discovered new exit (range 10) 1453 | -10/Mines | Central database locked down 1487 | -10/Mines | Assembled infested the area 1901 | -10/Mines | Entered Materials 1901 | -9/Materials | Accompanied by 1 ally 1901 | -9/Materials | Evolved 2 slots: Utility x2 2291 | -9/Materials | Build established: Scavenger-Mutant 2432 | -9/Materials | Identified exit to Mines 2866 | -9/Materials | Repaired Core Shielding 3099 | -9/Materials | Destroyed 8 combat bots 3134 | -9/Materials | Discovered new exit (range 15) 3384 | -9/Materials | Discovered new exit (range 9) 3450 | -9/Materials | Repaired Cld. Ion Engine 3501 | -9/Materials | First assault squad dispatched 3502 | -9/Materials | Repaired Adv. Beam Cannon 3530 | -9/Materials | Core integrity fell below 50% 3554 | -9/Materials | Build established: Mutant 3579 | -9/Materials | Lost 4 parts (1n1u2w) 3634 | -9/Materials | Repaired Cld. Ion Engine 3833 | -9/Materials | Entered Mines 3961 | -9/Mines | Learned 4 Materials zone layouts 4133 | -9/Mines | Discovered new exit (range 15) 4198 | -9/Mines | Entered Materials 4198 | -8/Materials | Accompanied by 2 allies 4198 | -8/Materials | Evolved 2 slots: Utility x2 4199 | -8/Materials | Identified exit to Factory 4203 | -8/Materials | Led the pair of lost Derelicts to an unsafe place 4263 | -8/Materials | Repaired Core Shielding 4539 | -8/Materials | Build established: Scavenger-Mutant 4613 | -8/Materials | Identified exit to Garrison 4615 | -8/Materials | Entered Garrison 4615 | -8/Garrison | Accompanied by 1 ally 4686 | -8/Garrison | Triggered checkpoint 4762 | -8/Garrison | Discovered new exit (range 10) 4824 | -8/Garrison | Triggered checkpoint 4967 | -8/Garrison | Phase Generator disabled 5116 | -8/Garrison | Triggered checkpoint 5198 | -8/Garrison | Triggered checkpoint 5480 | -8/Garrison | Discovered new exit (range 10) 5570 | -8/Garrison | Triggered checkpoint 5622 | -8/Garrison | Lost 4 parts (1p2u1w) 5739 | -8/Garrison | Garrison Relay disabled 5792 | -8/Garrison | Discovered new exit (range 15) 5824 | -8/Garrison | Installed Relay Interface Framework 5830 | -8/Garrison | Entered Materials 6230 | -8/Materials | Build established: Mutant 6564 | -8/Materials | Core integrity fell below 50% 6662 | -8/Materials | Build established: Scavenger-Mutant 6678 | -8/Materials | Repaired Core Shielding 7030 | -8/Materials | First assault squad dispatched 7079 | -8/Materials | Core integrity fell below 20% 7087 | -8/Materials | Discovered exit to Factory (range 5) 7407 | -8/Materials | Lost 3 parts (1p1n1w) 7668 | -8/Materials | Destroyed by G-47 Trooper with Particle Gun Last Messages --------------- 07468_ ALERT: Suspicious activity at Terminal M009. Dispatching Investigation squad. 07478_ W-25 Informer suffers critical hit. 07478_ Destroyed Imp. Hover Unit. 07480_ T-07 Excavator destroyed. 07491_ Acquired 14 matter. 07513_ Acquired 6 matter. 07530_ K-01 Serf collects debris. 07535_ W-25 Informer destroyed. 07537_ K-01 Serf collects debris. 07545_ Acquired Maneuvering Thrusters. 07567_ Dropped Med. Storage Unit. 07578_ Dropped Carbon-fiber Leg. 07578_ Acquired Airjet. 07581_ Dropped Titanium Leg. 07595_ Acquired Imp. Carbon-fiber Leg. 07665_ C-30 ARC bursts open, deploying its payload. 07665_ L-31 Rogue unfolds itself. 07665_ G-47 Trooper unfolds itself. 07666_ Acquired 55 matter. 07667_ R-06 Scavenger collects Particle Gun. Map ----- +----------------------------------------------------+ | ?#[ ! ! # # #???????# ?????# [[" | | ?# " " # # """ #???????# ?######### | | ?# "G" # + """ #???????# ## ### | | ?# """ # # """ #???????# """ ## | | ?# # + ##??????# """ ## | | ?######### #######"##?????# """ ## %! | | ?????# ! #?????##!##????# ## ### | | ?????#!!![[[#??????##"##########?### ### | | ?????#!!!! [#??????## #???????# * #?# | | ?????########???????# #???????#=% #?# | | ??????# #???????????# #???????#= #?# | | ??????# #???????????# #???????#! #?# | | ??????###???????????# #???????#% %#?# | | ????????????????????# #???????# #?# | | ?????????????????#######+########### #### | | ?????????????????# | | ?????????????????# %! % | | ?????????????????# %! | | ?????????????????# %########### ######## | | ?????????????????# g #[ """" ## #??????? | | ?????????????????# l# ""R" ## #???#### | | ?????????????##### #=% "" " ## #???# | | ?????????????# r%# % ## #???#* | | ?????????????# < %+ ## #???# | | ?????????????# *==#[=""""" ## #???# | | ?????????????#####@!##*= """" ## #???# | | ?????????????????# ##! """"" ## #???# | | ?????????????????# ## ## #???#### | | ?????????????????#% ############ ######## | | ?????????????????# #??????????# | | ?????????????????# #??????????# | | ?????????????????# #??????????# | | ?????????????????# #??????????##### ###### | | ?????????????????# #??????????????# #????? | | ????????????###??# #??????????????# #????? | | ??????????? ??# #??????????????# #????? | | ??????????# ?# #??????????????# #????? | | ??????????# ""?# ###########????# #????? | | ??????????# """# # """T""" #????# #????? | | ??????????# """# # #????# ###### | | ??????????# + # #????# # | | ??????????######## # """ """ ######!# ! T | | ??????????# # """ """ + =+% | | ??????????# # """ """ ### [#!% | | ??????????# !! + #?# # = | | ??????????# !] ## #?#= # | | ??????????# ############?# ! ### ## | | ??????????# !!#????????????# #?#### | | ??????????# !!#????????????#% #????# | | ??????????# #????????????#* ###????# | +----------------------------------------------------+ Best States ------------- Heat Dissipation 42 Energy Generation 23 Energy Capacity 280 Matter Stores 300 Matter Capacity 300 Sight Range 16 Robot Scan Range 30 Terrain Scan Range 20 Terrain Scan Density 10 Jamming Range 8 Additional Mass Support 6 Armor Coverage 300 Resistance: TH 10 Core Shielding 20 Evasion (%) 51 Recoil Reduction 2 Offensive Hacking 10 Defensive Hacking 10 Item Schematics ----------------- Cmb. Airjet | -9/Materials | Scanalyzed Hacking Suite | -9/Materials | Scanalyzed Exp. Sensor Array | -8/Materials | Scanalyzed Adv. Signal Interpreter | -8/Materials | Scanalyzed System Shield | -8/Materials | Scanalyzed Core Shielding | -8/Materials | Scanalyzed Adv. Terrain Scanner | -8/Materials | Scanalyzed Transmission Jammer | -8/Materials | Scanalyzed Mak. Sword | -8/Materials | Scanalyzed Remote Datajack | -8/Materials | Scanalyzed Robot Schematics ------------------ None Fabricated ------------ Nothing Alien Tech Used ----------------- None Achievements -------------- None Challenges ------------ None Game ------ Seed BottomlessAlloyCutter Manual? 0 Play Time 01:19:38 Cumulative 856.5 hours Start 2020.01.02 @ 19:40:49 End 2020.01.02 @ 21:58:48 Sessions 1 Manual Loads 0 Difficulty Rogue Special Mode None Game No. 319 Rogue 319 Adventurer 0 Explorer 0 Win Type - Total 12 Types 11/0/1/0/0/0/0 Lore% 77 Gallery% 87 Achievement% 69 Wizard Run 0 Options --------- ASCII 0 Keyboard 1 Movement Numpad Keybinds 0 Fullscreen 2 Font 18/SmallcapsGlow Map View 112x50 Tactical HUD 1 Map Filters NONE Filters NONE Steam 1 RUN: 6c9b4cd6-3f25-4c7a-8f3c-a7b8ad6aea05